[Event "Early-Titled-Tuesday-Blitz-September-05-2023"]
[Site "Chess.com"]
[Date "2023.09.05"]
[Round "8"]
[White "benny_aizenberg"]
[Black "malakismayil"]
[Result "0-1"]
[WhiteElo "2647"]
[BlackElo "2536"]
[TimeControl "180+1"]
[EndTime "9:28:50 PDT"]
[Termination "malakismayil won by resignation"]

1. g4 {[%clk 0:03:00.5]} 1... e5 {[%clk 0:02:52.5]} 2. g5 {[%clk 0:02:58.1]}
2... d5 {[%clk 0:02:49.1]} 3. h4 {[%clk 0:02:56.4]} 3... Nc6 {[%clk 0:02:46.1]}
4. d3 {[%clk 0:02:53.5]} 4... h6 {[%clk 0:02:45.6]} 5. Bg2 {[%clk 0:02:49.3]}
5... Be7 {[%clk 0:02:43.8]} 6. Nf3 {[%clk 0:02:33.4]} 6... Bg4 {[%clk 0:02:26]}
7. Nc3 {[%clk 0:02:22.8]} 7... Qd7 {[%clk 0:02:15.3]} 8. h5 {[%clk 0:01:26.6]}
8... O-O-O {[%clk 0:02:07]} 9. g6 {[%clk 0:01:10.7]} 9... fxg6 {[%clk
0:02:04.2]} 10. hxg6 {[%clk 0:01:08.8]} 10... Nf6 {[%clk 0:02:04.4]} 11. Nh2
{[%clk 0:00:43.9]} 11... Bf5 {[%clk 0:01:40.3]} 12. Rg1 {[%clk 0:00:29.3]} 12...
Kb8 {[%clk 0:01:33]} 13. Nxd5 {[%clk 0:00:11.9]} 13... Nxd5 {[%clk 0:01:32.7]}
14. e3 {[%clk 0:00:12.3]} 14... Nf6 {[%clk 0:01:28.9]} 15. e4 {[%clk 0:00:10.8]}
15... Be6 {[%clk 0:01:28.2]} 16. Be3 {[%clk 0:00:10.8]} 16... Bb4+ {[%clk
0:01:20.3]} 17. c3 {[%clk 0:00:10.5]} 17... Ba5 {[%clk 0:01:14.2]} 18. Ke2
{[%clk 0:00:08.2]} 18... Bb6 {[%clk 0:01:12.9]} 19. Qc2 {[%clk 0:00:07.7]} 19...
Bxe3 {[%clk 0:01:12]} 20. fxe3 {[%clk 0:00:08.1]} 20... Rhf8 {[%clk 0:01:06.8]}
21. Raf1 {[%clk 0:00:08]} 21... Ne7 {[%clk 0:00:53.5]} 22. b3 {[%clk 0:00:07.2]}
22... Nxg6 {[%clk 0:00:52.3]} 23. d4 {[%clk 0:00:05.8]} 23... Nh4 {[%clk
0:00:46.9]} 24. Bh1 {[%clk 0:00:05.8]} 24... exd4 {[%clk 0:00:32.6]} 25. exd4
{[%clk 0:00:05.2]} 25... g5 {[%clk 0:00:33.2]} 26. e5 {[%clk 0:00:04.6]} 26...
Nd5 {[%clk 0:00:26.9]} 27. Kd2 {[%clk 0:00:04.3]} 27... Nf4 {[%clk 0:00:23.5]}
28. Kc1 {[%clk 0:00:03.1]} 28... Bd5 {[%clk 0:00:23.8]} 29. Kb2 {[%clk
0:00:03.1]} 29... Bxh1 {[%clk 0:00:23.8]} 30. Rxh1 {[%clk 0:00:03.7]} 30... Nf5
{[%clk 0:00:21.4]} 31. Ng4 {[%clk 0:00:03.6]} 31... h5 {[%clk 0:00:20.6]} 32.
Nf6 {[%clk 0:00:03.6]} 32... Rxf6 {[%clk 0:00:20.8]} 33. exf6 {[%clk 0:00:03.8]}
33... Ne3 {[%clk 0:00:21.5]} 34. Qe4 {[%clk 0:00:02.6]} 34... Nxf1 {[%clk
0:00:21.6]} 35. Rxf1 {[%clk 0:00:03.5]} 35... Rf8 {[%clk 0:00:16.2]} 36. Qe5
{[%clk 0:00:03]} 36... Ne6 {[%clk 0:00:10]} 37. Qf5 {[%clk 0:00:02.3]} 37... b6
{[%clk 0:00:10]} 38. d5 {[%clk 0:00:02.5]} 38... Nc5 {[%clk 0:00:09.9]} 39. Qxg5
{[%clk 0:00:03]} 39... Qh3 {[%clk 0:00:08.2]} 40. Rf5 {[%clk 0:00:02.5]} 40...
Qh2+ {[%clk 0:00:08]} 41. Ka3 {[%clk 0:00:02.4]} 41... Qd6 {[%clk 0:00:08.9]}
42. Qe3 {[%clk 0:00:02.2]} 42... Nd7+ {[%clk 0:00:08.1]} 43. b4 {[%clk
0:00:02.6]} 43... Rxf6 {[%clk 0:00:08.6]} 44. Rxh5 {[%clk 0:00:02.8]} 44... Rf8
{[%clk 0:00:08.5]} 45. Rh7 {[%clk 0:00:02.7]} 45... Nf6 {[%clk 0:00:08.4]} 46.
Rh6 {[%clk 0:00:02.7]} 46... Nxd5 {[%clk 0:00:07.9]} 47. Rxd6 {[%clk 0:00:02]}
47... Nxe3 {[%clk 0:00:07.9]} 48. Re6 {[%clk 0:00:02.7]} 48... Nc4+ {[%clk
0:00:07.7]} 49. Kb3 {[%clk 0:00:02.5]} 49... Nd6 {[%clk 0:00:08.6]} 50. Re5
{[%clk 0:00:02.2]} 50... Rf3 {[%clk 0:00:08.5]} 51. Rd5 {[%clk 0:00:02.8]} 51...
Kb7 {[%clk 0:00:08.6]} 52. Rd4 {[%clk 0:00:03.2]} 52... b5 {[%clk 0:00:08.7]}
53. a4 {[%clk 0:00:03.4]} 53... a6 {[%clk 0:00:08.7]} 54. axb5 {[%clk
0:00:03.2]} 54... axb5 {[%clk 0:00:09.6]} 55. Rd5 {[%clk 0:00:03.4]} 55... Kb6
{[%clk 0:00:10]} 56. Rc5 {[%clk 0:00:03.8]} 56... Nc4 {[%clk 0:00:10]} 57. Kc2
{[%clk 0:00:03.4]} 57... Rf2+ {[%clk 0:00:10.2]} 58. Kd3 {[%clk 0:00:03.7]}
58... Rd2+ {[%clk 0:00:10.4]} 59. Ke4 {[%clk 0:00:04]} 59... Rd1 {[%clk
0:00:10.1]} 60. Rh5 {[%clk 0:00:04]} 60... Nd6+ {[%clk 0:00:10.3]} 61. Ke3
{[%clk 0:00:03.8]} 61... Rc1 {[%clk 0:00:10.6]} 62. Kd2 {[%clk 0:00:03.9]} 62...
Rg1 {[%clk 0:00:10.9]} 63. Kc2 {[%clk 0:00:04.2]} 63... Kc6 {[%clk 0:00:10.6]}
64. Kd3 {[%clk 0:00:04.2]} 64... Rg3+ {[%clk 0:00:10.2]} 65. Kc2 {[%clk
0:00:04.2]} 65... Kb6 {[%clk 0:00:08.7]} 66. Rh4 {[%clk 0:00:03.8]} 66... Nc4
{[%clk 0:00:07.7]} 67. Rh5 {[%clk 0:00:03.4]} 67... c6 {[%clk 0:00:08]} 68. Rh4
{[%clk 0:00:03.4]} 68... Ne3+ {[%clk 0:00:07.7]} 69. Kd2 {[%clk 0:00:03.4]}
69... Nd5 {[%clk 0:00:08.6]} 70. c4 {[%clk 0:00:02.4]} 70... Nxb4 {[%clk
0:00:05.5]} 71. cxb5 {[%clk 0:00:02.5]} 71... Kxb5 {[%clk 0:00:06.4]} 72. Rh5+
{[%clk 0:00:02.7]} 72... c5 {[%clk 0:00:06.8]} 73. Rh4 {[%clk 0:00:03.2]} 73...
Rd3+ {[%clk 0:00:06.2]} 74. Ke2 {[%clk 0:00:03.3]} 74... Rd4 {[%clk 0:00:06.2]}
75. Rh8 {[%clk 0:00:02.9]} 75... Kc4 {[%clk 0:00:06.6]} 76. Ke3 {[%clk
0:00:03.2]} 76... Nd5+ {[%clk 0:00:07]} 77. Ke2 {[%clk 0:00:03.1]} 77... Nc3+
{[%clk 0:00:07.4]} 78. Ke3 {[%clk 0:00:03.3]} 78... Rd3+ {[%clk 0:00:08]} 79.
Kf2 {[%clk 0:00:03.1]} 79... Nd5 {[%clk 0:00:06.7]} 80. Ke2 {[%clk 0:00:03.3]}
80... Rd4 {[%clk 0:00:07.1]} 81. Ke1 {[%clk 0:00:02.5]} 81... Kc3 {[%clk
0:00:06.5]} 82. Rh3+ {[%clk 0:00:02.2]} 82... Rd3 {[%clk 0:00:06.3]} 83. Rh5
{[%clk 0:00:02.8]} 83... c4 {[%clk 0:00:06.4]} 84. Rh8 {[%clk 0:00:02.8]} 84...
Nb4 {[%clk 0:00:06.3]} 85. Rc8 {[%clk 0:00:02.7]} 85... Kb3 {[%clk 0:00:06.5]}
86. Ke2 {[%clk 0:00:02.7]} 86... Rd6 {[%clk 0:00:06.1]} 87. Ke1 {[%clk
0:00:01.4]} 87... c3 {[%clk 0:00:06.6]} 88. Ke2 {[%clk 0:00:02]} 88... c2 {[%clk
0:00:07]} 89. Ke3 {[%clk 0:00:02.6]} 89... Rc6 {[%clk 0:00:06.9]} 0-1

[Event "Early-Titled-Tuesday-Blitz-September-05-2023"]
[Site "Chess.com"]
[Date "2023.09.05"]
[Round "8"]
[White "slidingknight2775"]
[Black "Gareth-Bale11"]
[Result "0-1"]
[WhiteElo "2571"]
[BlackElo "2779"]
[TimeControl "180+1"]
[EndTime "9:29:04 PDT"]
[Termination "Gareth-Bale11 won by resignation"]

1. d4 {[%clk 0:03:00.9]} 1... g6 {[%clk 0:02:57.1]} 2. c4 {[%clk 0:02:58]} 2...
Bg7 {[%clk 0:02:57]} 3. Nf3 {[%clk 0:02:58.7]} 3... d6 {[%clk 0:02:56.8]} 4. Nc3
{[%clk 0:02:58.4]} 4... Nf6 {[%clk 0:02:57]} 5. Bg5 {[%clk 0:02:57.9]} 5... O-O
{[%clk 0:02:45]} 6. e3 {[%clk 0:02:57.9]} 6... c5 {[%clk 0:02:44.1]} 7. Be2
{[%clk 0:02:57.6]} 7... Nc6 {[%clk 0:02:31.2]} 8. O-O {[%clk 0:02:38.5]} 8... h6
{[%clk 0:02:27.5]} 9. Bh4 {[%clk 0:02:38.6]} 9... cxd4 {[%clk 0:02:26.8]} 10.
exd4 {[%clk 0:02:30.8]} 10... g5 {[%clk 0:02:26.7]} 11. Bg3 {[%clk 0:02:31.2]}
11... Nh5 {[%clk 0:02:26.7]} 12. d5 {[%clk 0:02:11.6]} 12... Nxg3 {[%clk
0:02:24.4]} 13. hxg3 {[%clk 0:02:12.5]} 13... Ne5 {[%clk 0:02:19.5]} 14. Nxe5
{[%clk 0:02:12.8]} 14... Bxe5 {[%clk 0:02:19.1]} 15. Qd2 {[%clk 0:02:12.7]}
15... Qb6 {[%clk 0:02:07.3]} 16. Bd3 {[%clk 0:02:08.6]} 16... Qd4 {[%clk
0:01:59.7]} 17. Rad1 {[%clk 0:02:03]} 17... Bg4 {[%clk 0:01:52.5]} 18. Bh7+
{[%clk 0:02:00.2]} 18... Kxh7 {[%clk 0:01:52]} 19. Qxd4 {[%clk 0:02:01.1]} 19...
Bxd4 {[%clk 0:01:52.1]} 20. Rxd4 {[%clk 0:02:02]} 20... Bf5 {[%clk 0:01:51.6]}
21. g4 {[%clk 0:02:00.4]} 21... Bg6 {[%clk 0:01:47]} 22. f3 {[%clk 0:01:49.7]}
22... Kg7 {[%clk 0:01:34.2]} 23. Re1 {[%clk 0:01:47.7]} 23... Kf6 {[%clk
0:01:29.9]} 24. Ne4+ {[%clk 0:01:39.9]} 24... Bxe4 {[%clk 0:01:26.6]} 25. Rdxe4
{[%clk 0:01:40.8]} 25... Rfe8 {[%clk 0:01:26.8]} 26. Kf2 {[%clk 0:01:36.1]}
26... Rac8 {[%clk 0:01:21.7]} 27. Rh1 {[%clk 0:01:32.2]} 27... Kg6 {[%clk
0:01:19.5]} 28. Rhe1 {[%clk 0:01:31.7]} 28... Rc7 {[%clk 0:01:17.7]} 29. b3
{[%clk 0:01:29.4]} 29... a6 {[%clk 0:01:17.3]} 30. a4 {[%clk 0:01:26]} 30... b5
{[%clk 0:01:07.3]} 31. axb5 {[%clk 0:01:17.4]} 31... axb5 {[%clk 0:01:08.2]} 32.
Ra1 {[%clk 0:01:16.6]} 32... bxc4 {[%clk 0:01:06.7]} 33. bxc4 {[%clk 0:01:16.8]}
33... Rb8 {[%clk 0:01:01]} 34. Rae1 {[%clk 0:01:13.1]} 34... Kf6 {[%clk
0:00:59.5]} 35. Rh1 {[%clk 0:01:12.3]} 35... Rb2+ {[%clk 0:00:58.9]} 36. Kg3
{[%clk 0:01:12.4]} 36... Rc2 {[%clk 0:00:48.5]} 37. Rxh6+ {[%clk 0:01:00.3]}
37... Kg7 {[%clk 0:00:48.6]} 38. Rh5 {[%clk 0:00:47.6]} 38... Kg6 {[%clk
0:00:40.5]} 39. Rh8 {[%clk 0:00:46.7]} 39... R2xc4 {[%clk 0:00:40]} 40. Rg8+
{[%clk 0:00:39.2]} 40... Kf6 {[%clk 0:00:37.3]} 41. Re1 {[%clk 0:00:22.4]} 41...
Rc1 {[%clk 0:00:31.4]} 42. Re2 {[%clk 0:00:17.4]} 42... Rd1 {[%clk 0:00:28]} 43.
Rh8 {[%clk 0:00:11.1]} 43... Rxd5 {[%clk 0:00:27.2]} 44. Rh6+ {[%clk 0:00:11.1]}
44... Kg7 {[%clk 0:00:27.5]} 45. Rh5 {[%clk 0:00:11.7]} 45... f6 {[%clk
0:00:24.3]} 46. Re1 {[%clk 0:00:11.5]} 46... Rd2 {[%clk 0:00:22.2]} 47. Reh1
{[%clk 0:00:10.6]} 47... Kf7 {[%clk 0:00:21.6]} 48. Rh7+ {[%clk 0:00:10.2]}
48... Ke8 {[%clk 0:00:21.1]} 49. Re1 {[%clk 0:00:08.8]} 49... Rd5 {[%clk
0:00:19.9]} 50. Re2 {[%clk 0:00:08.1]} 50... Kd8 {[%clk 0:00:19.9]} 51. Rh8+
{[%clk 0:00:07.8]} 51... Kd7 {[%clk 0:00:19.9]} 52. Rh7 {[%clk 0:00:08.5]} 52...
Re5 {[%clk 0:00:18]} 53. Rxe5 {[%clk 0:00:04.6]} 53... dxe5 {[%clk 0:00:18.9]}
54. Rh8 {[%clk 0:00:03.8]} 54... Rc3 {[%clk 0:00:18.7]} 55. Kf2 {[%clk
0:00:03.2]} 55... Rc2+ {[%clk 0:00:18.8]} 56. Kg3 {[%clk 0:00:03.7]} 56... e4
{[%clk 0:00:19]} 57. fxe4 {[%clk 0:00:03.5]} 57... Rc3+ {[%clk 0:00:19]} 58. Kf2
{[%clk 0:00:04]} 58... Rc4 {[%clk 0:00:17.8]} 59. Kf3 {[%clk 0:00:04.1]} 59...
Ke6 {[%clk 0:00:18]} 60. Ra8 {[%clk 0:00:03.8]} 60... Rc3+ {[%clk 0:00:18.4]}
61. Kf2 {[%clk 0:00:03.9]} 61... Ke5 {[%clk 0:00:18.6]} 62. Ra7 {[%clk
0:00:03.2]} 62... e6 {[%clk 0:00:18.3]} 63. Ra6 {[%clk 0:00:03.8]} 63... Rd3
{[%clk 0:00:17.2]} 64. Rb6 {[%clk 0:00:03.5]} 64... Rd4 {[%clk 0:00:17]} 65. Kf3
{[%clk 0:00:03.2]} 65... Rd3+ {[%clk 0:00:16.5]} 66. Kf2 {[%clk 0:00:03.8]}
66... Rc3 {[%clk 0:00:17]} 67. Ra6 {[%clk 0:00:03.5]} 67... Rb3 {[%clk
0:00:16.6]} 68. Rc6 {[%clk 0:00:02.7]} 68... Rb2+ {[%clk 0:00:16.7]} 69. Kf3
{[%clk 0:00:02.9]} 69... Ra2 {[%clk 0:00:16.4]} 70. Rb6 {[%clk 0:00:02.8]} 70...
Rc2 {[%clk 0:00:15.2]} 71. Rb5+ {[%clk 0:00:02.9]} 71... Kd4 {[%clk 0:00:15.6]}
72. Rb6 {[%clk 0:00:02.6]} 72... Rc3+ {[%clk 0:00:15]} 73. Kf2 {[%clk
0:00:03.2]} 73... Ke5 {[%clk 0:00:13.6]} 74. Ke2 {[%clk 0:00:01.6]} 74... Rg3
{[%clk 0:00:12.5]} 75. Kf2 {[%clk 0:00:02]} 75... Rxg4 {[%clk 0:00:12.9]} 76.
Kf3 {[%clk 0:00:01.9]} 76... Rf4+ {[%clk 0:00:13.3]} 77. Kg3 {[%clk 0:00:02.6]}
77... Rxe4 {[%clk 0:00:13.7]} 78. Kf3 {[%clk 0:00:03.2]} 78... Rf4+ {[%clk
0:00:13.5]} 79. Ke3 {[%clk 0:00:04.1]} 79... Rc4 {[%clk 0:00:14]} 80. Kf3 {[%clk
0:00:04.5]} 80... Rc3+ {[%clk 0:00:14.2]} 81. Kf2 {[%clk 0:00:05]} 81... Kf5
{[%clk 0:00:14.1]} 82. Rb5+ {[%clk 0:00:05.1]} 82... e5 {[%clk 0:00:14.3]} 83.
Rb6 {[%clk 0:00:05.7]} 83... g4 {[%clk 0:00:14.6]} 84. g3 {[%clk 0:00:05.6]}
84... Rf3+ {[%clk 0:00:13.2]} 85. Kg2 {[%clk 0:00:05.3]} 85... Kg5 {[%clk
0:00:14.1]} 86. Rb8 {[%clk 0:00:05.3]} 86... Rc3 {[%clk 0:00:14.1]} 87. Rg8+
{[%clk 0:00:05.7]} 87... Kf5 {[%clk 0:00:14.2]} 88. Rb8 {[%clk 0:00:06.6]} 88...
Rc2+ {[%clk 0:00:14.6]} 89. Kg1 {[%clk 0:00:06.5]} 89... Ke4 {[%clk 0:00:14.9]}
90. Rb6 {[%clk 0:00:07.4]} 90... f5 {[%clk 0:00:14.7]} 91. Rb3 {[%clk
0:00:07.3]} 91... Rd2 {[%clk 0:00:14.5]} 92. Kf1 {[%clk 0:00:06.9]} 92... Rd3
{[%clk 0:00:14.6]} 93. Rb4+ {[%clk 0:00:07.5]} 93... Kf3 {[%clk 0:00:15.1]} 94.
Ke1 {[%clk 0:00:07.9]} 94... Kxg3 {[%clk 0:00:15]} 95. Ke2 {[%clk 0:00:08.8]}
95... Rf3 {[%clk 0:00:14.9]} 96. Rb5 {[%clk 0:00:09.7]} 96... Rf2+ {[%clk
0:00:15.1]} 97. Ke3 {[%clk 0:00:09.9]} 97... f4+ {[%clk 0:00:15.4]} 98. Ke4
{[%clk 0:00:10.5]} 98... Re2+ {[%clk 0:00:15.6]} 99. Kf5 {[%clk 0:00:11]} 99...
f3 {[%clk 0:00:14.3]} 100. Rb3 {[%clk 0:00:11.9]} 100... e4 {[%clk 0:00:13.2]}
101. Rb4 {[%clk 0:00:12.8]} 101... Kg2 {[%clk 0:00:13.3]} 102. Kxg4 {[%clk
0:00:11.9]} 102... f2 {[%clk 0:00:13.6]} 103. Rxe4 {[%clk 0:00:09.7]} 103...
Rxe4+ {[%clk 0:00:13.1]} 0-1

[Event "Early-Titled-Tuesday-Blitz-September-05-2023"]
[Site "Chess.com"]
[Date "2023.09.05"]
[Round "9"]
[White "Dixit_Nikhil"]
[Black "DefiantChair"]
[Result "0-1"]
[WhiteElo "2511"]
[BlackElo "2645"]
[TimeControl "180+1"]
[EndTime "9:37:31 PDT"]
[Termination "DefiantChair won by resignation"]

1. a3 {[%clk 0:03:00.9]} 1... c5 {[%clk 0:02:58.9]} 2. h3 {[%clk 0:03:00.5]}
2... e5 {[%clk 0:02:57.5]} 3. b3 {[%clk 0:02:59.8]} 3... d5 {[%clk 0:02:57.3]}
4. Bb2 {[%clk 0:03:00.2]} 4... Nc6 {[%clk 0:02:57.3]} 5. g3 {[%clk 0:03:00.7]}
5... f5 {[%clk 0:02:56.8]} 6. Bg2 {[%clk 0:03:01]} 6... Nf6 {[%clk 0:02:56.4]}
7. d3 {[%clk 0:03:01]} 7... Bd6 {[%clk 0:02:56.3]} 8. e3 {[%clk 0:03:01.4]} 8...
e4 {[%clk 0:02:55.9]} 9. Ne2 {[%clk 0:02:59.5]} 9... Qe7 {[%clk 0:02:55.5]} 10.
Nd2 {[%clk 0:02:53.1]} 10... Ne5 {[%clk 0:02:50.6]} 11. d4 {[%clk 0:02:45.4]}
11... cxd4 {[%clk 0:02:48.9]} 12. Nxd4 {[%clk 0:02:41.3]} 12... a6 {[%clk
0:02:48]} 13. c4 {[%clk 0:02:31]} 13... Nd3+ {[%clk 0:02:44.9]} 14. Ke2 {[%clk
0:02:25.7]} 14... Nxb2 {[%clk 0:02:44.3]} 15. Qc2 {[%clk 0:02:26.3]} 15... Nd3
{[%clk 0:02:40.7]} 16. b4 {[%clk 0:02:23.3]} 16... Be5 {[%clk 0:02:35.8]} 17. c5
{[%clk 0:02:21]} 17... Bxd4 {[%clk 0:02:34.5]} 18. exd4 {[%clk 0:02:21.9]} 18...
f4 {[%clk 0:02:33.8]} 19. gxf4 {[%clk 0:02:21.4]} 19... Nxf4+ {[%clk 0:02:33.2]}
20. Kf1 {[%clk 0:02:21.9]} 20... Nxg2 {[%clk 0:02:31.3]} 21. Kxg2 {[%clk
0:02:22.8]} 21... O-O {[%clk 0:02:29.9]} 22. Nf1 {[%clk 0:02:23]} 22... Nh5
{[%clk 0:02:29.6]} 23. Nd2 {[%clk 0:02:21.9]} 0-1

[Event "Early-Titled-Tuesday-Blitz-September-05-2023"]
[Site "Chess.com"]
[Date "2023.09.05"]
[Round "9"]
[White "korbul"]
[Black "LileKoridze"]
[Result "0-1"]
[WhiteElo "2578"]
[BlackElo "2384"]
[TimeControl "180+1"]
[EndTime "9:38:30 PDT"]
[Termination "LileKoridze won by resignation"]

1. e4 {[%clk 0:03:00.9]} 1... c5 {[%clk 0:02:59.7]} 2. Nf3 {[%clk 0:03:00.3]}
2... d6 {[%clk 0:02:59.1]} 3. d4 {[%clk 0:03:00.1]} 3... cxd4 {[%clk 0:02:59.6]}
4. Nxd4 {[%clk 0:03:01]} 4... Nf6 {[%clk 0:02:59.5]} 5. Nc3 {[%clk 0:03:00.8]}
5... a6 {[%clk 0:03:00]} 6. Be2 {[%clk 0:03:00.6]} 6... e5 {[%clk 0:02:59.4]} 7.
Nb3 {[%clk 0:03:00.5]} 7... Be7 {[%clk 0:02:58.9]} 8. O-O {[%clk 0:03:00.1]}
8... O-O {[%clk 0:02:59]} 9. Be3 {[%clk 0:02:59.1]} 9... Be6 {[%clk 0:02:58.7]}
10. f3 {[%clk 0:02:56.5]} 10... Nbd7 {[%clk 0:02:58.6]} 11. Rf2 {[%clk
0:02:55.9]} 11... Qc7 {[%clk 0:02:56.9]} 12. Bf1 {[%clk 0:02:55]} 12... b5
{[%clk 0:02:56.3]} 13. Rd2 {[%clk 0:02:53]} 13... Rfc8 {[%clk 0:02:55.1]} 14. a4
{[%clk 0:02:48.3]} 14... b4 {[%clk 0:02:54.1]} 15. Nd5 {[%clk 0:02:48.3]} 15...
Nxd5 {[%clk 0:02:54]} 16. exd5 {[%clk 0:02:48.4]} 16... Bf5 {[%clk 0:02:54.5]}
17. Rc1 {[%clk 0:02:47.5]} 17... Nb6 {[%clk 0:02:53.9]} 18. Na5 {[%clk
0:02:39.4]} 18... Nxa4 {[%clk 0:02:51.3]} 19. Nc6 {[%clk 0:02:38.7]} 19... Nxb2
{[%clk 0:02:50.1]} 20. Qe1 {[%clk 0:02:32.6]} 20... a5 {[%clk 0:02:47.2]} 21. c4
{[%clk 0:02:21.1]} 21... Na4 {[%clk 0:02:40.1]} 22. c5 {[%clk 0:02:15.8]} 22...
Nxc5 {[%clk 0:02:39.9]} 23. Bxc5 {[%clk 0:02:11.3]} 23... dxc5 {[%clk
0:02:40.1]} 24. Nxe7+ {[%clk 0:02:10.4]} 24... Qxe7 {[%clk 0:02:39.9]} 25. d6
{[%clk 0:02:10.7]} 25... Qf6 {[%clk 0:02:35.2]} 26. Qe3 {[%clk 0:02:00.5]} 26...
a4 {[%clk 0:02:27.6]} 27. Rxc5 {[%clk 0:01:59.9]} 27... a3 {[%clk 0:02:26]} 28.
Rxc8+ {[%clk 0:01:54.2]} 28... Bxc8 {[%clk 0:02:23.2]} 29. d7 {[%clk 0:01:48.3]}
29... Bxd7 {[%clk 0:02:23.1]} 30. Rxd7 {[%clk 0:01:48]} 30... a2 {[%clk
0:02:23.6]} 0-1

[Event "Early-Titled-Tuesday-Blitz-September-05-2023"]
[Site "Chess.com"]
[Date "2023.09.05"]
[Round "9"]
[White "koncheto"]
[Black "AsaHoffmann"]
[Result "1-0"]
[WhiteElo "2538"]
[BlackElo "2379"]
[TimeControl "180+1"]
[EndTime "9:38:46 PDT"]
[Termination "koncheto won by resignation"]

1. e4 {[%clk 0:02:48.9]} 1... d6 {[%clk 0:02:59.3]} 2. d4 {[%clk 0:02:49]} 2...
Nf6 {[%clk 0:02:58.9]} 3. Bd3 {[%clk 0:02:49.6]} 3... e5 {[%clk 0:02:58.6]} 4.
c3 {[%clk 0:02:49.7]} 4... Nc6 {[%clk 0:02:58.7]} 5. Ne2 {[%clk 0:02:44]} 5...
Be7 {[%clk 0:02:58.1]} 6. O-O {[%clk 0:02:44]} 6... O-O {[%clk 0:02:57.9]} 7. f4
{[%clk 0:02:44.5]} 7... Bg4 {[%clk 0:02:55.9]} 8. Be3 {[%clk 0:02:43.6]} 8... d5
{[%clk 0:02:53.7]} 9. fxe5 {[%clk 0:02:34.4]} 9... Nxe4 {[%clk 0:02:52.5]} 10.
Nd2 {[%clk 0:02:35]} 10... f5 {[%clk 0:02:48]} 11. exf6 {[%clk 0:02:29.5]} 11...
Nxf6 {[%clk 0:02:45.6]} 12. Nf3 {[%clk 0:02:26.4]} 12... Bd6 {[%clk 0:02:40.7]}
13. Nf4 {[%clk 0:02:19.1]} 13... Re8 {[%clk 0:02:37.3]} 14. Qd2 {[%clk
0:02:04.1]} 14... Ne4 {[%clk 0:02:34.1]} 15. Qc2 {[%clk 0:02:00.8]} 15... Nxc3
{[%clk 0:02:11.8]} 16. Bxh7+ {[%clk 0:01:49]} 16... Kh8 {[%clk 0:02:11.3]} 17.
Ng6+ {[%clk 0:01:36.8]} 17... Kxh7 {[%clk 0:02:10.8]} 18. Nf8+ {[%clk
0:01:36.4]} 18... Kg8 {[%clk 0:02:08.8]} 19. Qh7+ {[%clk 0:01:37.3]} 19... Kxf8
{[%clk 0:02:04.4]} 20. Ng5+ {[%clk 0:01:35]} 1-0

[Event "Early-Titled-Tuesday-Blitz-September-05-2023"]
[Site "Chess.com"]
[Date "2023.09.05"]
[Round "9"]
[White "thedjoker98"]
[Black "Legendinunknown"]
[Result "0-1"]
[WhiteElo "2621"]
[BlackElo "2823"]
[TimeControl "180+1"]
[EndTime "9:39:10 PDT"]
[Termination "Legendinunknown won by resignation"]

1. d4 {[%clk 0:03:00.9]} 1... Nf6 {[%clk 0:02:58.4]} 2. c4 {[%clk 0:03:01.1]}
2... e6 {[%clk 0:02:58]} 3. Nc3 {[%clk 0:03:01.5]} 3... Bb4 {[%clk 0:02:57.7]}
4. g3 {[%clk 0:03:02.1]} 4... c5 {[%clk 0:02:56.9]} 5. Nf3 {[%clk 0:03:01.8]}
5... b6 {[%clk 0:02:50]} 6. Bg2 {[%clk 0:03:01]} 6... Bb7 {[%clk 0:02:50.4]} 7.
O-O {[%clk 0:03:00.7]} 7... Bxc3 {[%clk 0:02:49.7]} 8. bxc3 {[%clk 0:03:00.7]}
8... d6 {[%clk 0:02:49.7]} 9. d5 {[%clk 0:03:00.7]} 9... exd5 {[%clk 0:02:48.6]}
10. Nh4 {[%clk 0:03:00.5]} 10... O-O {[%clk 0:02:47.5]} 11. cxd5 {[%clk
0:03:01]} 11... Nbd7 {[%clk 0:02:44.1]} 12. e4 {[%clk 0:03:01]} 12... b5 {[%clk
0:02:42.6]} 13. f4 {[%clk 0:02:57.1]} 13... c4 {[%clk 0:02:40.7]} 14. Re1 {[%clk
0:02:55.9]} 14... Re8 {[%clk 0:02:40.4]} 15. Nf5 {[%clk 0:02:55.2]} 15... Nc5
{[%clk 0:02:39.6]} 16. Nxd6 {[%clk 0:02:51.1]} 16... Qxd6 {[%clk 0:02:37.2]} 17.
e5 {[%clk 0:02:51.5]} 17... Qb6 {[%clk 0:02:37.9]} 18. Be3 {[%clk 0:02:46.6]}
18... Nxd5 {[%clk 0:02:16.9]} 19. Bxd5 {[%clk 0:02:44.4]} 19... Rad8 {[%clk
0:02:16.8]} 20. a4 {[%clk 0:02:38]} 20... Rxd5 {[%clk 0:02:15.3]} 21. Qe2 {[%clk
0:02:38.4]} 21... a6 {[%clk 0:02:12.8]} 0-1

[Event "Early-Titled-Tuesday-Blitz-September-05-2023"]
[Site "Chess.com"]
[Date "2023.09.05"]
[Round "9"]
[White "LeoWin2012"]
[Black "Kapitan_Bayan"]
[Result "0-1"]
[WhiteElo "2208"]
[BlackElo "2199"]
[TimeControl "180+1"]
[EndTime "9:39:47 PDT"]
[Termination "Kapitan_Bayan won by resignation"]

1. e4 {[%clk 0:03:00.9]} 1... c5 {[%clk 0:02:59.7]} 2. Nf3 {[%clk 0:03:00.3]}
2... d6 {[%clk 0:03:00.3]} 3. Bb5+ {[%clk 0:02:59.2]} 3... Nd7 {[%clk
0:02:59.2]} 4. d4 {[%clk 0:02:55.5]} 4... cxd4 {[%clk 0:02:58.3]} 5. Qxd4 {[%clk
0:02:56.1]} 5... a6 {[%clk 0:02:57.3]} 6. Bxd7+ {[%clk 0:02:56]} 6... Bxd7
{[%clk 0:02:58.2]} 7. c4 {[%clk 0:02:55.8]} 7... Nf6 {[%clk 0:02:56]} 8. Nc3
{[%clk 0:02:55.9]} 8... g6 {[%clk 0:02:56]} 9. h3 {[%clk 0:02:53.8]} 9... Bg7
{[%clk 0:02:55.7]} 10. Be3 {[%clk 0:02:53.7]} 10... Kf8 {[%clk 0:02:52.9]} 11.
O-O {[%clk 0:02:52.1]} 11... Ng4 {[%clk 0:02:50.6]} 12. Qd2 {[%clk 0:02:50.8]}
12... Nxe3 {[%clk 0:02:49.8]} 13. Qxe3 {[%clk 0:02:51.7]} 13... Qc7 {[%clk
0:02:45]} 14. Nd5 {[%clk 0:02:46.1]} 14... Qc5 {[%clk 0:02:40.6]} 15. Nb6 {[%clk
0:02:35.8]} 15... Qxe3 {[%clk 0:02:31.6]} 16. Nxd7+ {[%clk 0:02:29.2]} 16... Ke8
{[%clk 0:02:30]} 17. fxe3 {[%clk 0:02:29.5]} 17... Kxd7 {[%clk 0:02:30.1]} 18.
Rab1 {[%clk 0:02:29.3]} 18... h6 {[%clk 0:02:12]} 19. Rfd1 {[%clk 0:02:27]}
19... Rac8 {[%clk 0:02:08.6]} 20. b3 {[%clk 0:02:26.8]} 20... Rc5 {[%clk
0:02:08.4]} 21. Rd5 {[%clk 0:02:25.9]} 21... Rhc8 {[%clk 0:02:02.8]} 22. Rbd1
{[%clk 0:02:18]} 22... Ke8 {[%clk 0:01:46.9]} 23. Rxc5 {[%clk 0:01:51.3]} 23...
dxc5 {[%clk 0:01:43.2]} 24. Rd5 {[%clk 0:01:43.3]} 24... e6 {[%clk 0:01:36.4]}
25. Rd6 {[%clk 0:01:40.3]} 25... Ke7 {[%clk 0:01:34.7]} 26. Rb6 {[%clk
0:01:39.1]} 26... Rc7 {[%clk 0:01:32.6]} 27. Ne1 {[%clk 0:01:34]} 27... Bc3
{[%clk 0:01:31.2]} 28. b4 {[%clk 0:01:25]} 28... Bxe1 {[%clk 0:01:27.2]} 29. b5
{[%clk 0:01:23.1]} 29... Ba5 {[%clk 0:01:24]} 30. bxa6 {[%clk 0:01:21.3]} 30...
Bxb6 {[%clk 0:01:23.6]} 31. a7 {[%clk 0:01:21.1]} 31... Bxa7 {[%clk 0:01:23.2]}
0-1